Cogmind - Beta 16 --- EXPLORER MODE // 2025.12.03 @ 16:57:56 Player: K.K.Y. Result: Destroyed by UM-HJ8(R) with Subdweller Shrapnel Launcher Performance ------------- Evolutions (0) 0 Regions Visited (3) 600 Robots Destroyed (50) 250 Value Destroyed (1127) 1127 Prototype IDs (0) 0 Alien Tech Used (0) 0 Bonus (0) 0 TOTAL SCORE: 1977 Bonus ------- None Cogmind --------- Core Integrity 0/250 Matter 274/300 Energy 100/100 System Corruption 1% Temperature Cool (0) Movement Treading (160) Location -10/Subcaves Parts ------- > --- POWER (1) -------- (None) > --- PROPULSION (2) --- Light Treads Light Treads > --- UTILITY (3) ------ Improved Terrain Scanner Terrain Scan Processor Terrain Scan Processor > --- WEAPON (2) ------- Barrage Gun > --- INVENTORY (5) ---- Huge Storage Unit Structural Scanner Machine Analyzer Experimental Sensor Array Peak State ------------ > --- POWER ------------ (None) > --- PROPULSION ------- Light Treads Spiked Treads > --- UTILITY ---------- Improved Terrain Scanner Terrain Scan Processor Terrain Scan Processor > --- WEAPON ----------- Barrage Gun Grenade Launcher > --- INVENTORY -------- Huge Storage Unit Structural Scanner Machine Analyzer Experimental Sensor Array Mining Laser [Rating: 15] Favorites ----------- Power Ion Engine Engine Ion Engine Propulsion Light Treads Treads Light Treads Utility Terrain Scan Processor Device Improved Terrain Scanner Processor Terrain Scan Processor Weapon Grenade Launcher Energy Gun Medium Laser Energy Cannon Beam Cannon Ballistic Gun Barrage Gun Ballistic Cannon Battle Cannon Launcher Grenade Launcher Special Weapon Mining Laser Build | -11 -10 -10 -10 ------- Run | Yrd Mat Min Sub Slots Evolved 1 | . 1 . . Power . | . . . . Propulsion . | . . . . Utility 1 | . 1 . . Weapon . | . . . . Parts Attached 18 | 5 4 3 6 Power 1 | 1 . . . Engine 1 | 1 . . . Core . | . . . . Reactor . | . . . . Propulsion 6 | 2 . 1 3 Treads 6 | 2 . 1 3 Leg . | . . . . Wheel . | . . . . Hover . | . . . . Flight . | . . . . Utility 5 | 1 3 1 . Device 3 | 1 1 1 . Storage . | . . . . Processor 2 | . 2 . . Hackware . | . . . . Protection . | . . . . Artifact . | . . . . Weapon 6 | 1 1 1 3 Energy Gun 1 | 1 . . . Energy Cannon 1 | . 1 . . Ballistic Gun 1 | . . . 1 Ballistic Cannon 1 | . . . 1 Launcher 1 | . . 1 . Special Weapon 1 | . . . 1 Impact Weapon . | . . . . Slashing Weapon . | . . . . Piercing Weapon . | . . . . Special Melee Weapon . | . . . . Unidentified Prototypes . | . . . . Parts Lost 5 | . 1 1 3 Power 1 | . 1 . . Propulsion 2 | . . 1 1 Utility . | . . . . Weapon 2 | . . . 2 Highest Loss Streak 2 | . 1 1 2 To Critical Strikes 1 | . . . 1 Average Backups 3 | . 2 4 4 Power . | . . . . Propulsion . | . . . . Utility 2 | . 1 2 3 Weapon 1 | . 1 1 . Tool/Special . | . . . . Unused Backups 4 | . 1 . 3 Power . | . . . . Propulsion . | . . . . Utility 4 | . 1 . 3 Weapon . | . . . . Tool/Special . | . . . . Average Slot Usage (%) 77 | . 73 80 77 Engine 1 | . 5 . . Treads 22 | . 25 23 21 Device 12 | . 12 12 12 Processor 23 | . 17 25 25 Energy Gun 3 | . 11 . . Energy Cannon 3 | . . 12 . Ballistic Gun 3 | . . . 7 Ballistic Cannon 2 | . . . 4 Launcher 4 | . . 7 5 Peak Build Rating 15 | 7 11 12 15 Average Rating 11 | 5 9 11 13 On Entrance 7 | . 7 10 12 Avg Prop Armor Cover (%) . | . . . . Naked Turns . | . . . . Heaviest Build 8 | 8 8 7 7 Greatest Support 40 | 40 40 40 40 Greatest Overweight (x) . | . . . . Average Overweight (x) . | . . . . Largest Inventory Capacity 5 | 5 5 5 5 Average Capacity 5 | 5 5 5 5 Most Carried 5 | 4 5 5 5 Average Carried 3 | 1 2 4 4 Final Capacity 5 | 5 5 5 5 Final Carried 5 | 1 4 5 4 Class Distribution -------------------- 100% | Hacker-Mutant Dominant Class ---------------- Hacker-Mutant | -10/Materials Hacker-Mutant | -10/Mines Hacker-Mutant | -10/Subcaves Resources | -11 -10 -10 -10 ----------- Run | Yrd Mat Min Sub Matter Collected 973 | 250 50 81 592 Remotely . | . . . . Salvage Created 1527 | 224 566 229 508 Parts 88 | 20 28 8 32 Haulers Intercepted 2 | . 2 . . Recyclers Shooed . | . . . . Parts Field Recycled . | . . . . Retrieved Matter . | . . . . Parts Self-Destructed . | . . . . Prevented . | . . . . Parts Restored . | . . . . Kills | -11 -10 -10 -10 ------- Run | Yrd Mat Min Sub Combat Hostiles Destroyed 33 | . 9 8 16 Guns 15 | . 9 . 6 Cannons 12 | . . 8 4 AOE 6 | . . . 6 Classes Destroyed 14 | 3 6 2 3 Worker 2 | 2 . . . Builder 3 | . 2 1 . Tunneler 6 | 5 1 . . Hauler 2 | . 2 . . Recycler 3 | 1 . 2 . Mechanic 1 | . 1 . . Turret 2 | . . . 2 Watcher 3 | . 3 . . Swarmer 7 | . 2 2 3 Grunt 7 | . 7 . . Sentry 1 | . . . 1 Demolisher 1 | . . 1 . Subdweller 12 | . . . 12 Assembled 5 | . . 5 . Best Kill Streak 5 | 4 4 4 5 Combat Bots Only 4 | . 3 4 4 Max Kills in Single Turn 2 | 1 1 1 2 Gunslinging . | . . . . Exploded 2 | . . . 2 Melee . | . . . . Uniques/NPCs Destroyed . | . . . . Combat | -11 -10 -10 -10 -------- Run | Yrd Mat Min Sub Hostile Shots Fired 151 | . 60 21 70 Missed 38 | . 14 6 18 Hits 113 | . 46 15 52 Melee 2 | . . 2 . Projectile 111 | . 46 13 52 AOE 3 | . . 1 2 Critical Strikes 6 | . 2 1 3 Damage Taken 1137 | . 378 132 627 Core 257 | . 78 16 163 Absorbed by Shields . | . . . . Ignored by Resistances 681 | . 239 84 358 Core Remaining (%) 100 | 100 . . . Volleys Fired 216 | 19 65 31 101 Largest 2 | 1 1 2 2 Hottest 100 | 50 50 90 100 Shots Fired 232 | 19 66 33 114 Gun 131 | 19 66 . 46 Cannon 69 | . . 31 38 Launcher 20 | . . 2 18 Special 12 | . . . 12 Kinetic 84 | . . . 84 Thermal 128 | 19 66 31 12 Explosive 20 | . . 2 18 Electromagnetic . | . . . . Robot Hit Streak 52 | 19 13 13 52 Robot Miss Streak 2 | . 2 2 1 Penetration Max . | . . . . Secondary Targets . | . . . . Shots Hit Robots 148 | 19 56 23 50 Core Hits 84 | 9 31 13 31 Critical Kills . | . . . . Critical Parts Destroyed . | . . . . Critical Strikes 8 | 1 7 . . Burn 8 | 1 7 . . Melee Attacks . | . . . . Impact . | . . . . Slashing . | . . . . Piercing . | . . . . Sneak Attacks . | . . . . Combat Hostiles . | . . . . Follow-up Attacks . | . . . . Damage Inflicted 2601 | 239 708 403 1251 Guns 1323 | 239 708 . 376 Cannons 751 | . . 399 352 Explosions 525 | . . 2 523 Melee . | . . . . Ramming 2 | . . 2 . Kinetic 728 | . . . 728 Thermal 1346 | 239 708 399 . Explosive 525 | . . 2 523 Electromagnetic . | . . . . Impact . | . . . . Slashing . | . . . . Piercing . | . . . . Highest Corruption 1 | . 1 1 1 Average Corruption 1 | . 1 1 1 Corruption Purged . | . . . . Corruption Blocked . | . . . . Effects 39 | . 7 9 23 Message Errors 11 | . 1 2 8 Matter Fused 10 | . 3 4 3 Heat Flow Errors 4 | . . 1 3 Energy Discharges 5 | . . 2 3 Data Loss (minor) 3 | . 1 . 2 Data Loss (major) 3 | . 1 . 2 Misfires 2 | . 1 . 1 Alerts 1 | . . . 1 Overload Shots . | . . . . Overflow Damage 4 | . . 4 . Projectiles 4 | . . 4 . Explosions . | . . . . Melee . | . . . . Knockbacks 5 | . . . 5 Impact . | . . . . Kinetic 5 | . . . 5 Secondary . | . . . . Self-Inflicted Damage 8 | . . 1 7 Shots 2 | . . 1 1 Rammed . | . . . . Targets Rammed 1 | . . 1 . Kicked . | . . . . Crushed 1 | . . 1 . Highest Temperature 257 | 80 257 138 225 Average Temperature 66 | 30 91 34 97 Received Heat Transfer 595 | . 315 100 180 Effects 4 | . 4 . . Energy Bleed 1 | . 1 . . Interference 3 | . 3 . . Siege Activations . | . . . . Martial Activations . | . . . . Shielding Activations . | . . . . Robots Disrupted . | . . . . Combat Hostiles . | . . . . Robots Corrupted . | . . . . Combat Hostiles . | . . . . Parts Fried . | . . . . Impact Corruptions . | . . . . Robots Melted . | . . . . Combat Hostiles . | . . . . Parts Melted 12 | 1 11 . . Heat Transferred 4255 | 777 2627 851 . Parts Sabotaged . | . . . . Parts Stolen . | . . . . Parts Stripped . | . . . . Power Chain Reactions . | . . . . Alert | -11 -10 -10 -10 ------- Run | Yrd Mat Min Sub Maximum Alert Level . | . . . . Low Security (%) 100 | 100 100 100 . Level 1 . | . . . . Level 2 . | . . . . Level 3 . | . . . . Level 4 . | . . . . Level 5 . | . . . . High Security . | . . . . Max Security . | . . . . Peak Influence 75 | 20 75 50 . Initial . | . . . . Average 4 | 2 6 2 . Influence Increases 537 | 40 280 97 120 Destroy 0b10 Robot/C 360 | . 180 60 120 Destroy 0b10 Robot/NC 100 | 40 45 15 . Destroy Leader 60 | . 50 10 . Successful Hack 5 | . 5 . . Destroy Structure 12 | . . 12 . Influence Decreases 537 | 40 280 97 120 Time Decay 517 | 40 270 97 110 Lost Part 20 | . 10 . 10 Squads Dispatched . | . . . . Investigation . | . . . . Extermination . | . . . . Reinforcement . | . . . . Assault . | . . . . Garrison . | . . . . Intercept . | . . . . Searches Triggered . | . . . . Construction Impeded . | . . . . Haulers Reinforced . | . . . . Active Scanning Responses . | . . . . Cargo Convoy Interrupts . | . . . . Stealth | -11 -10 -10 -10 --------- Run | Yrd Mat Min Sub Distress Signals 1 | . 1 . . Communications Jammed . | . . . . Distress Signals . | . . . . Times Spotted 40 | . 13 8 19 Peak Tracking Total 6 | . 4 2 6 Tactical Retreats . | . . . . Traps | -11 -10 -10 -10 ------- Run | Yrd Mat Min Sub Traps Triggered 4 | . 2 . 2 Indirectly . | . . . . Trap Hack Attempts . | . . . . Triggered . | . . . . Disarmed . | . . . . Reprogrammed . | . . . . Reused . | . . . . Traps Extracted . | . . . . Installed . | . . . . Triggered . | . . . . Machines | -11 -10 -10 -10 ---------- Run | Yrd Mat Min Sub Machines Disabled 3 | . . . 3 Max in Single Turn 2 | . . . 2 Machines Repaired . | . . . . Machines Dismantled . | . . . . Machines Sabotaged . | . . . . Overloaded Fab Kills . | . . . . Hacking | -11 -10 -10 -10 --------- Run | Yrd Mat Min Sub Machines Accessed 5 | . 3 . 2 Terminals 3 | . 3 . . Fabricators . | . . . . Repair Stations . | . . . . Recycling Units . | . . . . Scanalyzers . | . . . . Garrison Access . | . . . . Total Hacks 7 | . 4 . 3 Successful 5 | . 2 . 3 Failed 2 | . 2 . . Catastrophic . | . . . . Database Lockouts . | . . . . Manual 4 | . 4 . . Terminals 4 | . 4 . . Fabricators . | . . . . Repair Stations . | . . . . Recycling Units . | . . . . Scanalyzers . | . . . . Garrison Access . | . . . . Terminal Hacks 3 | . . . 3 Record 1 | . . . 1 Open Door 1 | . . . 1 Release Object 1 | . . . 1 Fabricator Hacks . | . . . . Repair Station Hacks . | . . . . Recycling Unit Hacks . | . . . . Scanalyzer . | . . . . Garrison Access Hacks . | . . . . Unauthorized Hacks 2 | . 2 . . Terminals 2 | . 2 . . Botnet 2 | . 2 . . Fabricators . | . . . . Repair Stations . | . . . . Recycling Units . | . . . . Scanalyzers . | . . . . Garrison Access . | . . . . Data Cores Recovered . | . . . . Used . | . . . . Hacking Detections 1 | . 1 . . Full Trace Events 1 | . 1 . . Feedback Events . | . . . . Feedback Blocked . | . . . . Robot Schematics Acquired . | . . . . Robots Built . | . . . . Authchips . | . . . . Time . | . . . . Total Robot Build Rating . | . . . . Part Schematics Acquired . | . . . . Parts Built . | . . . . Authchips . | . . . . Time . | . . . . Total Part Build Rating . | . . . . Part Studies Acquired . | . . . . Parts Repaired . | . . . . Time . | . . . . Parts Recycled . | . . . . Recycled Matter . | . . . . Retrieved Matter . | . . . . Retrieved Components . | . . . . Parts Scanalyzed . | . . . . Part Schematics Acquired . | . . . . Parts Damaged . | . . . . Bothacking | -11 -10 -10 -10 ------------ Run | Yrd Mat Min Sub Used RIF Installer . | . . . . Robots Hacked . | . . . . Non-combat . | . . . . Combat . | . . . . Robot Hacks Applied . | . . . . Relay Couplers Released . | . . . . Fabnet Peak Effective % . | . . . . Robots Rewired . | . . . . Allies Hacked . | . . . . Hacks Repelled . | . . . . Allies | -11 -10 -10 -10 -------- Run | Yrd Mat Min Sub Total Allies . | . . . . Largest Group . | . . . . Highest-Rated Group . | . . . . Highest-Rated Ally . | . . . . Total Orders . | . . . . Ally Attacks . | . . . . Total Damage . | . . . . Kills . | . . . . Allies Corrupted . | . . . . Allies Melted . | . . . . Intel | -11 -10 -10 -10 ------- Run | Yrd Mat Min Sub Active Infowar (turns) 5997 | 97 1553 1425 2922 Terrain 5997 | 97 1553 1425 2922 Structural 1 | . 1 . . Robot Analysis Total . | . . . . Derelict Logs Recovered 1 | . . . 1 Drone Launches . | . . . . Drone Recoveries . | . . . . Exploration | -11 -10 -10 -10 ------------- Run | Yrd Mat Min Sub Turns Passed 6028 | 128 1553 1425 2922 Spaces Moved 3137 | 64 882 611 1580 Core 20 | 20 . . . Treads 3117 | 44 882 611 1580 Legs . | . . . . Wheels . | . . . . Hover . | . . . . Flight . | . . . . Fastest Speed 50 | 50 160 160 160 Average Speed 159 | 125 160 160 160 Slowest Speed 160 | 160 160 160 160 Overloaded Moves . | . . . . Propulsion Burnouts . | . . . . Robots Hopped . | . . . . Potential Cave-ins . | . . . . Cave-ins Triggered . | . . . . Exploration Rate (%) 67 | 4 99 95 73 Regions Visited 3 Branch Regions 2 Pre-discovered Areas . | . . . . Known Exits Taken 3 | 1 1 1 . Unknown Exits Taken . | . . . . Scrap Searched 6 | . . . 6 Spaces Dug 10 | . . . 10 Terrain Destroyed 83 | . . 16 67 Melee . | . . . . Projectile 1 | . . . 1 AOE 82 | . . 16 66 Terrain Rammed . | . . . . Walls Destroyed . | . . . . Machines Disabled . | . . . . Actions | -11 -10 -10 -10 --------- Run | Yrd Mat Min Sub Total 3919 | 93 961 1025 1840 Wait 524 | . . 375 149 Move 3134 | 63 881 610 1580 Hop . | . . . . Pick Up 19 | 6 7 4 2 Fast Attach . | . . . . Attach 13 | 5 4 2 2 Detach 2 | . 2 . . Swap 5 | . . 1 4 Drop 5 | . 2 1 2 Fire 216 | 19 65 31 101 Melee . | . . . . Ram . | . . . . Kick . | . . . . Crush 1 | . . 1 . Escape Stasis . | . . . . Rewire . | . . . . Trap . | . . . . Miscellaneous . | . . . . Route ------- -11/Scrapyard -10/Materials (discovered 4 exits: *Mat x3 / *Min) -10/Mines (discovered 3 exits: *Mat x2 / *Sub) -10/Subcaves (discovered 2 exits: *Mat / *Rec) History --------- Turn | Location | Event 9 | -11/Scrapyard | Identified exit to Materials 9 | -11/Scrapyard | Discovered exit to Materials (range 14) 129 | -11/Scrapyard | Entered Materials 129 | -10/Materials | Evolved 1 slot: Utility x1 301 | -10/Materials | Build established: Hacker-Mutant 348 | -10/Materials | Identified exit to Materials 348 | -10/Materials | Discovered exit to Materials (range 10) 779 | -10/Materials | Identified exit to Mines 779 | -10/Materials | Discovered exit to Mines (range 14) 967 | -10/Materials | Discovered exit to Materials (range 14) 989 | -10/Materials | Discovered exit to Materials (range 11) 1682 | -10/Materials | Entered Mines 2044 | -10/Mines | Assembled infested the area 2305 | -10/Mines | Found a damaged Exp. Sensor Array with a note attached 2308 | -10/Mines | Found Prototype Device 2398 | -10/Mines | Identified exit to Subcaves 2398 | -10/Mines | Discovered exit to Subcaves (range 5) 2412 | -10/Mines | Discovered exit to Materials (range 7) 2445 | -10/Mines | Discovered exit to Materials (range 10) 3107 | -10/Mines | Entered Subcaves 3108 | -10/Subcaves | Approached by a straggling Scientist 3125 | -10/Subcaves | Shifting Twisted Machinery released Battle Cannon 3126 | -10/Subcaves | Shifting Twisted Machinery released Flamer 3442 | -10/Subcaves | Identified exit to Materials 3442 | -10/Subcaves | Discovered exit to Materials (range 9) 3786 | -10/Subcaves | A swath of the cavern ceiling suddenly collapsed 3839 | -10/Subcaves | Ambushed by Subdweller buried in earth 3839 | -10/Subcaves | Ambushed by Subdweller buried in earth 4075 | -10/Subcaves | Disturbed a concealed Subdweller 4081 | -10/Subcaves | Disturbed a concealed Subdweller 4085 | -10/Subcaves | Core integrity fell below 50% 4249 | -10/Subcaves | Identified exit to Recycling 4249 | -10/Subcaves | Discovered exit to Recycling (range 11) 4495 | -10/Subcaves | Core integrity fell below 20% 4549 | -10/Subcaves | A swath of the cavern ceiling suddenly collapsed 6029 | -10/Subcaves | Destroyed by UM-HJ8(R) with Subdweller Shrapnel Launcher Last Messages --------------- 05061_ System corrupted: Component data lost. 05085_ System corrupted: Matter fused (-6). 05149_ System corrupted: Substantial component data lost. 05287_ Acquired 47 matter. 05358_ System corrupted: Heat flow error (+267). 05465_ System corrupted: Heat flow error (+110). 05502_ Subatomizers dissect the Sub. Optics. 05588_ System corrupted: Energy discharge (-27). 05631_ Subatomizers dissect the Flight Unit. 05642_ Acquired 6 matter. 05677_ Acquired 1 matter. 05680_ Acquired 9 matter. 05690_ Acquired 4 matter. 05730_ Critical hit (Burn: +37). 05736_ Y-45 Defender destroyed. 05742_ Acquired 20 matter. 05747_ Acquired Lgt. Treads. 05890_ YK-WFT(u) builds Twisted Machinery. Map ----- +----------------------------------------------------+ | ?????????????????????#?####?####?##?#?#??###???#?# | | ?????????#?????#?###??#####???##?#####?####?#??##? | | ????????????#???#?###?#?####?#?#########?#?####### | | ???????????#??##?##?###?###?##?##?##??#??##?###??# | | ?????????????##??#?#?###??##?#####?######?###??##? | | ????????????? ?###??#?#?########### ##?###?### | | ???????#????????? #######?## ##?##??## | | ???????????? ? ?? ?######### #######?? | | ???????#??#??? ? ?### ### ########### | | ????????????? #?# ### #####?####?## | | ??????????????? ??#?# #### ##?###### #### | | ???????????? ??? ?### ###### #########" | | ???????????? ??? ??## ######## ########## | | ???????????? ? ? #### ######## ############# | | ?????????????? ? ?##?## ## ### ########## ## | | ??????????#?#?? #?### ## ### ##########" | | ??????????#??? ?? #### ## ## ###?###?## | | ??????????#?#???? ?#### ### ########## | | ????????????#?# ? ? #?##### ######?#### # | | ????????? ?#????? ?##### ### ########## ## | | ???????????#?#? ? ##?## #### ####### " ## | | ?????????????## ?? ?? ?##?## ##?# #######""" ""# | | ?????????? ?### ##### #### ##""" """ | | ?????????? ????### ##;;;; ### " """ | | ??????????????#?## # ;; ; ;### """" | | ????????????? #?# @ #### ## """ | | ?????????? R #### ### "" | | ??????????# ;; ######### "" | | ??????????? ### ####; ###?#### " #### | | ??????????????###??##?####; ####### " ####?# | | ??????????????????####?##?## ###### " ###### | | #???????????#???????#?#?#?#?# ###### # | | ???????????????###?#?##?###?# ### | | ????#???????#????#?##???#?### | | ?????#??????????###?#??##?#?# #### | | #???#?????????????#??#???#?## ##### | | ?#?#?????????????#??###????## ###?# | | ?###???????????????#?????#?## #####?# | | ??#?????????????#?##?#?#??## ##### ####??## | | ##?????#??????????""?#?###?# ####### ### ##?#? | | ##????????????????????###?## #??######## ##??# | | ?##?#?#?????????????"????#### ####?##### #### | | ????##?##???????#??????###??## #??##### ### | | ##?####??????????????##??#?#?# #### ## # | | ##?###??????????????????###??## # | | ##?#?#?#?????????? ????#?####?## # | | ##?###??#???? ????#?? ##?? ??### ### % # | | ##?#?##??#?#??? ??? ?? ? ? ???## ########### # | | ?#?##?#??##?#????? ? ? ? ?? ???## ###??##?### # | | ##?####?#???????? ? ? ?#??? ? ? #?######## # | +----------------------------------------------------+ Best States ------------- Heat Dissipation 25 Energy Generation 10 Energy Capacity 250 Matter Stores 300 Matter Capacity 300 Sight Range 16 Terrain Scan Range 16 Terrain Scan Density 160 Resistance: KI 35 Resistance: TH 35 Resistance: EX 35 Resistance: EM 35 Resistance: I 35 Resistance: S 35 Resistance: P 35 Evasion (%) 50 Recoil Reduction 2 Offensive Hacking 20 Item Schematics ----------------- None Robot Schematics ------------------ None Fabricated ------------ Nothing Repaired ---------- Nothing Studied --------- None Alien Tech Used ----------------- None Achievements -------------- None Challenges ------------ None Game ------ Seed HypertargetingSmartbombTube Manual? 0 Play Time 00:25:00 Cumulative 163.1 hours Start 2025.12.03 @ 16:36:29 End 2025.12.03 @ 16:57:56 Sessions 1 Manual Loads 0 Difficulty Explorer Special Mode None Game No. 215 Rogue 0 Adventurer 0 Explorer 215 Win Type - Total 0 Types 0/0/0/0/0/0/0/0/0/0 Lore% 70 Gallery% 66 Achievement% 52 Wizard Run 0 Options --------- Layout 1 ASCII 0 Keyboard 0 Movement Mouse Keybinds 0 Fullscreen 1 Font 24/Smallcaps Map View 50x35 Zoom Use 0% Tactical HUD 1 Map Filters NONE Filters NONE Steam 1 RUN: 8ba58362-a8ff-4b47-90a1-8b3355d6cdc5